bitfinex/quotes_ETHUSD_20240715
["timestamp","ask_amount","ask_price","bid_price","bid_amount"]
[1721016466743,0.018333,3334.3,3333.7,0.06418268]
[1721016466925,5.4838964,3334.4,3333.7,0.06418268]
[1721016467244,8.2013694,3334.4,3333.7,0.06418268]
[1721016468013,8.1830364,3334.4,3333.7,0.06418268]
[1721016469249,0.018333,3334.3,3333.7,0.06418268]
[1721016469415,0.9635348,3334.3,3333.7,0.06418268]
[1721016470124,2.641,3334.0,3333.7,0.06418268]
[1721016470320,2.2859,3333.9,3333.3,5.7]
[1721016470519,2.2859,3333.9,3333.4,0.06419317]
[1721016472719,2.2859,3333.9,3333.5,2.69985]
[1721016473013,2.2859,3333.9,3333.6,2.76390214]
[1721016475257,2.2859,3333.9,3333.8,2.69962]
[1721016475417,2.2859,3333.9,3333.8,2.76380994]
[1721016477149,2.2859,3333.9,3333.8,0.06418994]
[1721016477327,2.54589868,3333.9,3333.8,0.06418994]
[1721016477533,3.58484045,3333.9,3333.2,7.35]
[1721016477758,2.2859,3333.9,3333.3,0.06426751]
[1721016478369,1.03893848,3333.8,3333.3,0.06426751]
[1721016478679,2.2859,3333.9,3333.5,2.69985]
[1721016478832,1.03893925,3333.8,3333.6,0.06422667]
[1721016479035,2.2859,3333.9,3333.6,0.06422667]
[1721016479234,1.03893865,3333.8,3333.6,0.06422667]
[1721016479461,1.03893865,3333.7,3333.6,0.06422667]
[1721016479978,2.2859,3333.9,3333.6,0.06422667]
[1721016480298,1.03893755,3333.8,3333.6,0.06422667]
[1721016480508,2.2859,3333.9,3333.6,0.06422667]
[1721016480770,1.03893675,3333.8,3333.6,2.76400667]
[1721016480929,1.03893675,3333.7,3333.6,2.76400667]
[1721016481567,1.03893675,3333.7,3333.6,0.06422667]
[1721016482069,1.03893675,3333.7,3333.6,0.06423616]
[1721016482438,1.03893955,3333.7,3333.6,0.06423616]
[1721016483182,1.03900952,3333.7,3333.2,10.0501]
[1721016483347,2.2859,3333.9,3333.6,0.06423616]
[1721016483683,1.83487496,3333.8,3333.7,0.06422064]
[1721016483835,1.83487496,3333.8,3333.3,2.7]
[1721016484170,1.03900497,3333.7,3333.4,0.06426719]
[1721016484342,1.03900497,3333.8,3333.4,0.06426719]
[1721016484545,1.03900497,3333.8,3333.2,7.35]
[1721016484749,1.03900497,3333.8,3333.3,0.0642827]
[1721016485139,0.018333,3333.7,3333.2,10.0501]
[1721016485479,3.38330497,3333.6,3333.4,0.06426719]
[1721016485782,1.03901963,3333.5,3333.2,10.05008]
[1721016486081,2.3443,3333.6,3333.2,10.05008]
[1721016486233,1.03902256,3333.5,3333.2,10.05008]
[1721016486434,2.3443,3333.6,3333.2,10.05008]
[1721016486661,1.05735629,3333.5,3333.2,10.05008]
[1721016486831,2.3443,3333.6,3333.2,10.05008]
[1721016487047,1.05735838,3333.5,3333.2,10.05008]
[1721016487241,0.34016584,3333.5,3333.2,7.35]
[1721016487476,1.05736023,3333.4,3333.2,7.35]
[1721016487672,0.34016584,3333.5,3332.9,2.70032]
[1721016487673,1.03902723,3333.3,3332.9,2.70032]
[1721016487846,4.9853,3333.6,3333.0,2.70021]
[1721016487847,1.03902723,3333.4,3333.0,2.70021]
[1721016488059,1.03902723,3333.3,3333.0,2.70021]
[1721016488258,1.03902723,3333.5,3333.0,2.70021]
[1721016488465,1.03902723,3333.5,3333.1,0.06431374]
[1721016488855,1.0390889,3333.4,3333.2,2.70005]
[1721016489183,1.0390889,3333.3,3333.2,2.70005]
[1721016489351,1.0390889,3333.4,3333.2,2.70005]
[1721016492101,0.31410852,3333.5,3333.2,2.70005]
[1721016492397,1.03908918,3333.4,3333.3,2.70001]
[1721016492698,1.03905436,3333.4,3333.3,2.70001]
[1721016492857,0.31410852,3333.5,3333.3,2.70001]
[1721016493259,0.31410852,3333.5,3333.4,2.69994]
[1721016494389,0.31410852,3333.5,3333.4,5.39988]
[1721016494590,3.58432832,3334.2,3334.0,2.6994]
[1721016494781,1.03880605,3334.1,3334.0,2.6994]
[1721016494976,2.331,3334.2,3334.0,2.6994]
[1721016495297,0.31407946,3334.3,3334.0,2.6994]
[1721016495593,1.03878445,3334.2,3334.0,2.6994]
[1721016495792,0.31407946,3334.3,3334.0,2.6994]
[1721016495991,2.2921,3334.1,3333.6,2.69975]
[1721016496190,3.67979301,3334.0,3333.5,2.69985]
[1721016496360,1.03879301,3333.9,3333.7,0.06433453]
[1721016496561,1.03879301,3333.9,3333.6,0.06435004]
[1721016496823,1.03879301,3333.9,3333.8,0.06431902]
[1721016496983,1.91872238,3333.9,3333.7,0.06433453]
[1721016497296,2.3964,3333.7,3333.3,2.70002]
[1721016497954,1.25662251,3333.9,3333.6,2.69972]
[1721016498160,1.03895537,3333.8,3333.6,2.69972]
[1721016498366,3.89762251,3334.0,3333.6,2.69972]
[1721016498589,1.03895237,3333.9,3333.6,2.69972]
[1721016498891,1.03895237,3333.8,3333.6,2.69972]
[1721016499897,2.25169338,3334.0,3333.6,2.69972]
[1721016500406,2.25169338,3334.0,3333.1,2.70011]
[1721016500560,2.3713,3333.4,3332.9,2.70032]
[1721016500914,2.3713,3333.4,3333.0,2.70025]
[1721016503144,2.3713,3333.4,3332.8,10.05037]
[1721016503473,2.3713,3333.4,3332.9,0.06440741]
[1721016503668,2.641,3333.0,3332.9,0.06440741]
[1721016504071,2.79337944,3333.0,3332.4,2.70074]
[1721016504272,2.79337944,3333.0,3332.5,0.06464792]
[1721016504273,0.018333,3332.9,3332.5,0.06464792]
[1721016504667,2.3721,3332.8,3332.5,0.06464792]
[1721016504869,2.3721,3332.8,3332.5,2.76530792]
[1721016507303,2.3721,3332.8,3332.5,0.06464792]
[1721016507610,2.3721,3332.8,3332.3,22.48079]
[1721016507611,2.641,3332.6,3332.3,19.78]
[1721016508515,2.641,3332.6,3332.0,2.70106]
[1721016508516,2.4738,3332.4,3331.7,2.7013]
[1721016509067,2.641,3332.2,3331.7,2.7013]
[1721016509386,2.641,3332.2,3331.8,2.70123]
[1721016509804,2.4738,3332.4,3331.8,2.70123]
[1721016510112,2.4738,3332.4,3332.0,2.70102]
[1721016510911,0.018333,3332.3,3332.0,2.70102]
[1721016511208,0.018333,3332.3,3331.8,2.70123]
[1721016511423,2.641,3332.2,3331.6,2.70138]
[1721016512597,2.641,3331.8,3331.4,2.70156]
[1721016513167,2.641,3331.8,3331.5,2.70147]
[1721016513891,2.641,3331.8,3331.5,2.70142]
[1721016515511,2.641,3331.8,3331.6,2.70137]
[1721016517795,2.4728,3332.1,3331.8,2.70117]
[1721016518026,2.4728,3332.1,3331.6,2.7014]
[1721016518241,2.4728,3332.1,3331.1,2.2876]
[1721016518242,2.68205234,3332.5,3331.9,2.70115]
[1721016518432,2.68205234,3332.5,3332.1,2.70099]
[1721016518730,2.68205234,3332.5,3332.2,0.06291047]
[1721016518902,2.641,3332.3,3331.7,2.7013]
[1721016519089,2.641,3332.3,3331.8,2.76413258]
[1721016519290,2.641,3332.3,3332.0,2.70107]
[1721016519621,2.641,3332.3,3332.1,0.062926]
[1721016519829,2.4744,3332.2,3332.1,0.062926]
[1721016520023,2.4744,3332.2,3331.7,2.7013]
[1721016520192,2.4744,3332.2,3332.1,0.062926]
[1721016520731,2.4744,3332.2,3331.7,2.70129]
[1721016520885,2.4744,3332.2,3331.8,2.76420258]
[1721016523033,2.4744,3332.2,3331.9,2.70112]
[1721016523395,2.4744,3332.2,3332.0,0.06292063]
[1721016525650,2.4744,3332.2,3331.6,2.70137]
[1721016525824,2.4744,3332.2,3332.1,0.062945]
[1721016526027,2.4744,3332.2,3331.6,2.70137]
[1721016526192,2.4744,3332.2,3332.1,0.062945]
[1721016526400,2.4744,3332.2,3331.6,2.70137]
[1721016526628,2.4744,3332.2,3332.1,0.0629545]
[1721016526830,2.4744,3332.2,3331.6,2.70137]
[1721016526831,2.4744,3332.2,3332.0,2.70107]
[1721016527005,2.4744,3332.2,3332.1,2.7639445]
[1721016527208,0.31405234,3332.5,3332.2,2.70091]
[1721016527531,0.31405234,3332.5,3332.3,0.06292344]
[1721016527853,0.31405234,3332.5,3332.2,2.70091]
[1721016527997,0.31405234,3332.5,3332.4,0.06290792]
[1721016528197,0.31405234,3332.5,3332.3,0.06292344]
[1721016528416,0.31405234,3332.5,3332.4,0.06290792]
[1721016528810,0.31405234,3332.5,3332.2,2.70091]
[1721016529014,2.78205234,3332.5,3332.4,0.06290792]
[1721016529209,2.78205234,3332.5,3332.3,0.06292344]
[1721016529417,2.78205234,3332.5,3332.2,2.70087]
[1721016529825,2.78205234,3332.5,3332.3,0.06292344]
[1721016530330,2.78205234,3332.5,3332.4,0.06290792]
[1721016530543,3.82147675,3332.5,3332.2,2.70087]
[1721016530711,2.78205234,3332.5,3332.3,0.06292344]
[1721016530924,2.78205234,3332.5,3332.2,2.70087]
[1721016531232,2.78205234,3332.5,3332.3,0.06292344]
[1721016531403,1.03942306,3332.4,3332.3,0.06292344]
[1721016531606,1.03942306,3332.4,3332.2,2.70087]
[1721016531937,2.78205234,3332.5,3332.3,0.06292344]
[1721016532230,1.03942479,3332.4,3332.2,2.70087]
[1721016532425,2.78205234,3332.5,3332.1,2.70099]
[1721016532629,1.03942467,3332.4,3332.1,2.70099]
[1721016532801,2.78205234,3332.5,3332.1,2.70099]
[1721016533136,1.03942478,3332.4,3332.1,2.70099]
[1721016533437,3.68042531,3332.3,3331.7,2.7013]
[1721016533641,6.14846666,3332.2,3331.7,2.7013]
[1721016533850,5.109,3332.2,3331.7,2.7013]
[1721016534131,1.03949753,3332.1,3331.7,2.7013]
[1721016534337,5.109,3332.2,3331.5,2.70142]
[1721016534497,1.03952978,3332.1,3331.5,2.70142]
[1721016534829,1.03952978,3332.0,3331.5,2.70142]
[1721016535030,1.03952978,3332.1,3331.5,2.70142]
[1721016535235,1.03953439,3332.0,3331.5,2.70142]
[1721016535435,5.109,3332.2,3331.5,2.70142]
[1721016535743,1.03953398,3332.1,3331.5,2.70142]
[1721016536041,1.03953398,3332.0,3331.5,2.70142]
[1721016536345,1.03953398,3331.9,3331.5,2.70142]
[1721016536516,1.03953398,3332.1,3331.5,2.70142]
[1721016536914,5.109,3332.2,3331.5,2.70142]
[1721016537228,2.3642,3332.0,3331.5,2.70142]
[1721016537556,2.3642,3331.7,3331.0,7.35]
[1721016537698,2.641,3331.4,3331.0,2.70183]
[1721016538097,1.03972109,3331.3,3331.0,2.70183]
[1721016538349,2.641,3331.4,3331.0,2.70183]
[1721016538553,1.0397247,3331.3,3330.9,2.70196]
[1721016538717,2.641,3331.4,3330.9,2.70196]
[1721016538902,1.03974606,3331.3,3330.9,2.70196]
[1721016539101,2.641,3331.4,3330.9,2.70196]
[1721016539348,1.03975505,3331.3,3330.9,2.70196]
[1721016539510,2.641,3331.4,3330.9,2.70196]
[1721016539707,1.03975602,3331.3,3330.9,2.70196]
[1721016539933,2.641,3331.4,3331.0,2.70188]
[1721016540247,2.3642,3331.7,3331.4,2.70151]
[1721016540556,1.03962515,3331.6,3331.4,2.70151]
[1721016540755,2.641,3331.8,3331.4,2.70151]
[1721016540912,1.03959768,3331.7,3331.4,2.70151]
[1721016541117,2.641,3331.8,3331.4,2.70151]
[1721016541329,1.0395919,3331.7,3331.4,2.70151]
[1721016541642,2.641,3331.8,3331.4,2.70151]
[1721016541847,1.03960033,3331.7,3331.4,2.70151]
[1721016542151,2.641,3331.8,3331.4,2.70151]
[1721016542322,1.03959964,3331.7,3331.4,2.70151]
[1721016542655,2.641,3331.8,3331.4,2.70151]
[1721016542853,1.03960019,3331.7,3331.4,2.70151]
[1721016543020,1.03960051,3331.6,3331.4,2.70151]
[1721016543338,2.641,3331.8,3331.4,2.70151]
[1721016543555,1.03967959,3331.7,3331.4,2.70151]
[1721016543733,1.03967959,3331.6,3331.4,2.70151]
[1721016543924,1.03967959,3331.5,3331.4,2.70151]
[1721016544646,2.641,3331.8,3331.4,2.70151]
[1721016544823,1.03967869,3331.7,3331.4,2.70151]
[1721016545024,1.03967869,3331.6,3331.4,2.70151]
[1721016545225,2.641,3331.8,3331.4,2.70151]
[1721016545555,1.03965894,3331.7,3331.4,2.70151]
[1721016545723,2.641,3331.8,3331.4,2.70151]
[1721016546258,1.03965738,3331.7,3331.4,2.70151]
[1721016546442,1.03965738,3331.6,3331.4,2.70151]
[1721016546651,2.641,3331.8,3331.4,2.70151]
[1721016546828,1.03966178,3331.7,3331.4,2.70151]
[1721016547030,1.03966178,3331.6,3331.4,2.70151]
[1721016547329,2.641,3331.8,3331.4,2.70151]
[1721016547551,1.03966198,3331.7,3331.4,2.70151]
[1721016547754,3.33046198,3331.6,3331.0,2.70189]
[1721016547927,1.03966198,3331.5,3331.0,2.70189]
[1721016548140,2.2908,3331.6,3331.0,2.70189]
[1721016548340,1.0397258,3331.5,3331.0,2.70189]
[1721016548539,2.2908,3331.6,3331.1,2.76315814]
[1721016548740,1.03973627,3331.5,3331.1,2.76315814]
[1721016548962,1.03973627,3331.4,3331.1,2.76315814]
[1721016549177,1.03973627,3331.5,3331.1,2.76315814]
[1721016549378,1.03974422,3331.4,3331.1,2.76315814]
[1721016549573,2.2908,3331.6,3331.1,2.76315814]
[1721016549755,1.03974412,3331.5,3331.1,2.76315814]
[1721016550075,2.2908,3331.6,3331.1,2.76315814]
[1721016550254,1.0397438,3331.5,3331.1,2.76315814]
[1721016550461,2.2908,3331.6,3331.1,2.76315814]
[1721016550647,1.03974383,3331.5,3331.1,2.76315814]
[1721016550854,2.2908,3331.6,3331.1,2.76315814]
[1721016551065,1.03974403,3331.5,3331.1,2.76315814]
[1721016551269,2.2908,3331.6,3331.1,2.76315814]
[1721016551438,1.03974487,3331.5,3331.1,2.76315814]
[1721016551638,2.2908,3331.6,3331.1,2.76315814]
[1721016552002,1.03974376,3331.5,3331.1,2.76315814]
[1721016552174,2.2908,3331.6,3331.1,2.76315814]
[1721016552377,1.03974466,3331.5,3331.1,2.76315814]
[1721016552567,2.2908,3331.6,3331.1,2.76315814]
[1721016552870,1.03974481,3331.5,3331.2,2.70171]
[1721016553074,1.03974481,3331.5,3331.1,2.76315814]
[1721016553075,2.2908,3331.6,3331.1,2.76315814]
[1721016553287,2.60483904,3331.6,3331.3,0.06132707]
[1721016553488,2.60483904,3331.6,3331.2,0.06134261]
[1721016553660,2.60483904,3331.6,3331.4,0.06131154]
[1721016553854,2.60483904,3331.6,3331.3,0.06132707]
[1721016554168,0.31403904,3331.6,3331.5,2.70148]
[1721016554345,1.53934458,3331.6,3331.5,2.762776]
[1721016558475,2.57898627,3331.6,3331.5,2.762776]
[1721016559064,1.53879695,3331.6,3331.5,2.762776]
[1721016559275,2.57842765,3331.6,3331.5,2.762776]
[1721016560395,2.3246,3332.2,3331.8,2.7012]
[1721016560608,1.03949084,3332.1,3332.0,5.40216]
[1721016560823,4.20940272,3332.9,3332.6,2.70059]
[1721016561106,2.5776678,3332.8,3332.6,2.70059]
[1721016561273,2.26367092,3332.7,3332.6,2.70059]
[1721016561471,2.26365588,3332.7,3332.6,2.70059]
[1721016561780,2.26365588,3332.7,3332.6,2.76156366]
[1721016561982,2.26365588,3332.7,3332.6,0.06097366]
[1721016562303,2.78528679,3332.7,3332.2,2.70089]
[1721016562480,2.26347959,3332.6,3332.2,2.70089]
[1721016562687,0.52186528,3332.7,3332.6,0.06075098]
[1721016562886,0.52186528,3332.7,3332.2,2.70089]
[1721016563071,0.52186528,3332.7,3332.6,0.06075098]
[1721016563275,1.74573894,3332.7,3332.2,2.70089]
[1721016563489,2.26324906,3332.6,3332.2,2.70089]
[1721016563681,1.22387366,3332.5,3332.3,0.06079756]
[1721016563877,0.31399688,3332.8,3332.5,2.70066]
[1721016564084,2.26303483,3332.7,3332.5,2.70066]
[1721016564283,0.31399688,3332.8,3332.6,0.06074152]
[1721016564486,2.26289395,3332.7,3332.6,2.76133152]
[1721016564687,0.31399688,3332.8,3332.7,2.70051]
[1721016564980,0.31399688,3332.8,3332.7,2.76119624]
[1721016565174,5.072,3333.3,3332.8,2.7004]
[1721016565372,2.57676376,3333.2,3332.9,0.0606552]
[1721016565572,1.22362309,3333.1,3332.9,0.0606552]
[1721016566092,1.88458172,3333.1,3332.9,0.0606552]
[1721016566269,3.49262309,3333.0,3332.9,0.0606552]
[1721016566469,3.49262309,3333.0,3332.2,2.70091]
[1721016566707,3.86462309,3332.9,3332.2,2.70091]
[1721016566911,1.22335159,3332.8,3332.3,2.76150452]
[1721016567088,2.641,3332.9,3332.3,2.76150452]
[1721016567991,2.641,3332.9,3332.4,2.70075]
[1721016568168,2.641,3332.9,3332.5,0.06064347]
[1721016569571,3.1338333,3332.9,3332.5,0.06064347]
[1721016570381,2.641,3332.9,3332.5,0.06064347]
[1721016572278,2.641,3332.9,3332.6,2.70051]
[1721016572787,2.641,3332.9,3332.7,0.06061243]
[1721016573174,2.641,3332.9,3332.7,2.76111243]
[1721016574313,2.641,3332.9,3332.7,0.06061243]
[1721016574681,2.641,3332.9,3332.5,2.70066]
[1721016575218,2.641,3332.9,3332.6,0.06062795]
[1721016575422,3.132,3332.9,3332.6,0.06062795]
[1721016575782,3.132,3332.9,3332.5,2.70067]
[1721016575981,2.641,3332.9,3332.6,0.06056168]
[1721016579585,2.641,3332.9,3332.4,2.70075]
[1721016579904,2.641,3332.9,3332.5,0.0605772]
[1721016580217,2.659333,3332.9,3332.5,0.0605772]
[1721016580516,2.641,3332.9,3332.5,0.0605772]
[1721016580721,2.641,3332.9,3332.3,2.70082]
[1721016581023,2.641,3332.9,3332.4,2.70074]
[1721016581230,2.641,3332.9,3332.5,0.0605772]
[1721016582404,2.4555,3332.8,3332.1,2.70097]
[1721016582590,2.641,3332.4,3332.2,0.06062378]
[1721016584102,2.641,3332.4,3332.2,2.76153378]
[1721016585197,2.641,3332.4,3332.2,0.06062378]
[1721016585392,3.641,3332.4,3332.1,2.70099]
[1721016585586,3.641,3332.4,3332.2,0.06062378]
[1721016585799,2.4555,3332.3,3332.2,0.06062378]
[1721016586339,2.4555,3332.3,3331.7,2.70129]
[1721016586494,2.4555,3332.3,3332.2,0.06078468]
[1721016586933,2.4555,3332.3,3331.7,2.70129]
[1721016587695,2.4555,3332.3,3331.8,0.0608468]
[1721016588237,2.4555,3332.3,3331.9,2.76198127]
[1721016588398,3.641,3332.4,3331.9,2.76198127]
[1721016589423,1.0394201,3332.3,3331.9,2.76198127]
[1721016589625,3.641,3332.4,3331.9,2.76198127]
[1721016589832,1.03942593,3332.3,3331.9,2.76198127]
[1721016590043,3.641,3332.4,3331.9,2.76198127]
[1721016590196,1.03942473,3332.3,3331.9,2.76198127]
[1721016590534,1.03942473,3332.2,3331.9,2.76198127]
[1721016590739,3.641,3332.4,3331.9,2.76198127]
[1721016590950,2.4016,3332.2,3331.9,2.76198127]
[1721016592295,1.03948784,3332.1,3331.9,2.76198127]
[1721016592504,2.4016,3332.2,3331.9,2.76198127]
[1721016592832,1.03949628,3332.1,3331.9,2.76198127]
[1721016593042,2.4016,3332.2,3331.9,2.76198127]
[1721016593206,1.03949045,3332.1,3331.9,2.76198127]
[1721016593415,2.4016,3332.2,3331.9,2.76198127]
[1721016593727,1.03949103,3332.1,3331.9,2.76198127]
[1721016594030,2.4016,3332.2,3331.9,2.76198127]
[1721016594199,1.03949198,3332.1,3331.9,2.76198127]
[1721016594398,2.4016,3332.2,3331.9,2.76198127]
[1721016595038,1.03949222,3332.1,3332.0,5.40216]
[1721016595200,3.641,3332.4,3332.2,2.70091]
[1721016595400,1.03943668,3332.3,3332.2,2.70091]
[1721016596908,1.0,3332.4,3332.3,2.70083]
[1721016599400,2.03938151,3332.4,3332.3,2.70083]
[1721016599599,3.2644499,3332.4,3332.3,2.70083]
[1721016600853,3.26437786,3332.4,3332.3,2.70083]
[1721016601049,3.26438018,3332.4,3332.3,2.70083]
[1721016601699,2.4935,3332.3,3332.0,2.70106]
[1721016601932,2.4935,3332.3,3332.1,2.70099]
[1721016602159,2.26403278,3332.2,3332.1,2.70099]
[1721016602368,2.26403278,3332.2,3332.1,5.40198]
[1721016602549,1.0,3332.4,3332.3,2.70083]
[1721016602725,2.22466221,3332.4,3332.3,2.70083]
[1721016602926,3.26401415,3332.4,3332.3,2.70083]
[1721016603464,2.22467539,3332.4,3332.3,2.70083]
[1721016603652,3.26397271,3332.4,3332.3,2.70083]
[1721016605435,3.26397271,3332.4,3331.4,2.70152]
[1721016605436,2.2662,3332.3,3332.0,2.70102]
[1721016605635,2.26397271,3332.2,3332.1,2.70099]
[1721016606767,2.26426298,3332.2,3332.1,2.70099]
[1721016607143,1.22484393,3332.2,3332.1,2.70099]
[1721016607346,2.2642547,3332.2,3332.1,2.70099]
[1721016608429,1.22484393,3332.2,3332.1,5.46252126]
[1721016608642,1.22489032,3332.3,3332.1,2.76153126]
[1721016608842,1.22489032,3332.2,3332.1,5.46252126]
[1721016609071,1.0,3332.4,3332.1,0.61054126]
[1721016609246,1.0,3332.4,3332.3,5.40166]
[1721016609445,1.0,3332.4,3332.3,5.95166]
[1721016609680,1.0,3332.4,3332.3,6.01217021]
[1721016609877,1.0,3332.4,3332.3,8.77301272]
[1721016610078,1.0,3332.4,3332.3,15.41763786]
[1721016610297,1.0,3332.4,3332.3,18.05844114]
[1721016610515,1.5693997,3333.6,3333.5,2.69986]
[1721016610657,2.26312866,3333.6,3333.5,5.39972]
[1721016610863,2.26312866,3333.6,3333.5,5.45992472]
[1721016611056,1.22415875,3333.6,3333.5,2.76006472]
[1721016611280,3.9861997,3334.1,3333.5,0.06020472]
[1721016611472,2.26242134,3334.0,3333.9,2.69954]
[1721016611684,1.22351824,3334.0,3333.9,2.75947899]
[1721016611851,1.03883734,3334.0,3333.9,2.75947899]
[1721016612061,1.03884942,3334.0,3333.9,2.75947899]
[1721016612286,1.22351824,3334.0,3333.9,2.75947899]
[1721016612685,1.22328805,3334.2,3334.0,2.69945]
[1721016612858,2.73082453,3334.3,3334.0,2.69945]
[1721016613197,1.2233927,3334.2,3334.0,2.69945]
[1721016613560,1.2233927,3334.2,3334.1,0.05990797]
[1721016615588,1.2233927,3334.2,3334.1,5.45864797]
[1721016615797,0.31402453,3334.3,3334.2,5.39858]
[1721016615996,2.4653,3334.8,3334.6,2.69897]
[1721016616203,1.53805736,3334.7,3334.6,2.69897]
[1721016617202,1.53805736,3334.7,3334.4,2.69913]
[1721016617371,0.33232072,3334.7,3334.4,2.69913]
[1721016617759,0.31398772,3334.7,3334.4,2.69913]
[1721016619904,0.31398772,3334.7,3334.2,2.69929]
[1721016620098,0.31398772,3334.7,3334.4,2.69909]
[1721016620399,1.58963016,3334.7,3334.4,2.69909]
[1721016621174,1.58963016,3334.7,3333.4,2.69987]
[1721016621175,2.3426,3334.4,3333.4,2.69987]
[1721016621506,1.58963016,3334.7,3333.2,3.0]
[1721016621507,2.641,3333.6,3333.2,2.70003]
[1721016622099,2.641,3333.6,3333.1,2.70018]
[1721016622763,2.641,3333.6,3333.2,2.70009]
[1721016623473,2.641,3333.6,3333.3,0.05587429]
[1721016623785,2.641,3333.6,3333.2,2.70009]
[1721016624099,2.641,3333.6,3333.3,0.05587429]
[1721016624281,2.641,3333.6,3333.0,2.70023]
[1721016624485,2.641,3333.6,3333.1,0.05590532]
[1721016624708,2.641,3333.6,3332.9,2.70033]
[1721016624890,2.641,3333.6,3333.2,0.0558898]
[1721016625187,2.3426,3333.9,3333.2,0.0558898]
[1721016625698,2.3426,3333.9,3333.2,2.70005]
[1721016626009,2.3426,3333.9,3333.3,0.05587429]
[1721016626366,2.3426,3333.9,3333.4,2.69989]
[1721016627088,2.69917,3334.4,3333.5,2.69985]
[1721016627294,2.641,3334.2,3333.5,2.69985]
[1721016627570,2.641,3334.2,3333.6,0.05425475]
[1721016627784,2.659333,3334.2,3333.6,0.05425475]
[1721016628104,2.659333,3334.2,3333.5,2.69985]
[1721016628392,1.83566705,3334.1,3333.6,0.05425475]
[1721016628596,0.79665712,3334.1,3333.6,0.05425475]
[1721016628789,0.79665712,3334.1,3333.5,2.69985]
[1721016629188,2.2932,3334.0,3333.6,0.05248924]
[1721016629576,2.2932,3334.0,3333.7,2.69968]
[1721016629896,2.641,3334.2,3333.8,0.0524451]
[1721016630062,2.641,3334.2,3333.7,2.69968]
[1721016630262,2.641,3334.2,3333.8,0.0524451]
[1721016630471,2.641,3334.2,3333.7,2.69968]
[1721016630676,2.641,3334.2,3333.8,0.0524451]
[1721016630974,2.641,3334.2,3333.7,2.69968]
[1721016631377,2.641,3334.2,3333.8,0.0524451]
[1721016631378,2.69945,3334.1,3333.8,0.0524451]
[1721016631578,2.641,3333.9,3333.8,0.0524451]
[1721016631786,2.641,3333.9,3333.3,2.70002]
[1721016632168,2.641,3333.9,3333.4,0.08350009]
[1721016633197,3.41177696,3333.9,3333.4,0.08350009]
[1721016633367,2.2767,3333.8,3333.4,0.08350009]
[1721016633571,2.641,3333.5,3332.6,2.70058]
[1721016633779,2.2767,3333.3,3332.6,2.70058]
[1721016633979,2.641,3333.1,3332.4,2.70068]
[1721016634184,2.641,3333.1,3332.5,2.70065]
[1721016634734,0.018333,3333.0,3332.5,2.70065]
[1721016635004,2.641,3333.1,3332.5,2.70065]
[1721016638536,2.641,3333.1,3332.6,0.08367667]
[1721016639220,2.659333,3333.1,3332.6,0.08367667]
[1721016639427,1.03931293,3333.0,3332.6,0.08367667]
[1721016639636,0.018333,3332.9,3332.3,2.70076]
[1721016639783,0.018333,3332.9,3332.7,0.08378959]
[1721016639982,0.018333,3332.9,3332.3,2.70076]
[1721016640209,5.359523,3333.1,3332.8,0.08377313]
[1721016640531,2.2835,3332.9,3332.3,2.70076]
[1721016640738,2.301833,3332.9,3332.3,2.70076]
[1721016641025,2.301833,3332.9,3332.4,0.08383895]
[1721016641821,2.301833,3332.9,3330.6,1.83032939]
[1721016641822,2.641,3332.7,3331.9,2.70113]
[1721016642024,2.659333,3332.7,3331.9,2.70113]
[1721016642272,2.659333,3332.7,3332.0,0.08408102]
[1721016642379,5.359853,3332.7,3332.0,0.08408102]
[1721016642825,2.289,3332.6,3332.0,0.08408102]
[1721016643048,5.007923,3332.6,3332.0,0.08408102]
[1721016643539,5.007923,3332.6,3331.8,2.70123]
[1721016644200,5.007923,3332.6,3331.9,0.08409748]
[1721016644598,4.98959,3332.6,3331.9,0.08409748]
[1721016644798,4.98959,3332.6,3331.8,2.70123]
[1721016645118,4.98959,3332.6,3331.9,0.08409748]
[1721016645332,4.98959,3332.6,3331.8,2.70123]
[1721016645704,4.98959,3332.6,3331.9,0.08409748]
[1721016646030,2.289,3332.4,3331.6,2.70139]
[1721016646187,2.641,3332.3,3331.6,2.70139]
[1721016646387,2.641,3332.3,3331.7,0.08413041]
[1721016646638,2.641,3332.3,3331.7,2.78544041]
[1721016647227,2.307333,3332.2,3331.7,0.08413041]
[1721016647387,2.800333,3332.2,3331.5,2.70148]
[1721016647807,2.307333,3332.2,3331.6,0.08414687]
[1721016648238,2.289,3332.2,3331.6,0.08414687]
[1721016648529,2.289,3332.6,3332.1,2.70095]
[1721016648691,2.289,3332.6,3332.3,2.70082]
[1721016648891,2.289,3332.6,3332.4,0.08428906]
[1721016649874,4.93,3332.6,3332.4,0.08428906]
[1721016650144,4.93,3332.6,3332.1,2.70095]
[1721016650145,4.93,3332.6,3332.5,0.0842726]
[1721016650624,4.93,3332.6,3332.3,2.70079]
[1721016650827,4.93,3332.6,3332.4,0.08428906]
[1721016651234,2.289,3332.6,3332.4,0.08428906]
[1721016653131,4.93,3332.6,3332.4,0.08428906]
[1721016655050,0.31398586,3332.7,3332.4,0.08428906]
[1721016655194,2.2895,3333.2,3332.8,2.70037]
[1721016655401,2.641,3333.1,3332.4,2.78503906]
[1721016655634,2.641,3333.1,3332.9,0.08409424]
[1721016655948,2.641,3333.1,3332.5,2.78475006]
[1721016656102,2.641,3333.1,3333.0,0.08407779]
[1721016656430,3.6802705,3333.1,3332.6,2.70058]
[1721016656729,2.641,3333.1,3332.6,2.70058]
[1721016656928,2.641,3333.1,3332.7,0.08412715]
[1721016658759,0.018333,3333.0,3332.7,0.08412715]
[1721016659110,0.018333,3333.0,3332.5,2.70066]
[1721016659316,2.4173,3332.9,3332.8,0.08394186]
[1721016659517,2.4173,3332.9,3332.3,2.70082]
[1721016659742,2.4173,3332.9,3332.8,0.08394186]
[1721016659947,3.45660079,3332.9,3332.3,2.70082]
[1721016660149,2.4173,3332.9,3332.3,2.70082]
[1721016660329,2.4173,3332.9,3332.4,0.08400768]